Workbook

Sheet Параметры кредита
B2: Ипотечный калькулятор
E5: ФИО заемщика | H5: Петров П.П.
E7: Тип продукта | H7: Переезд-комфорт
E9: Договор № | H9: 21/514-65/754св
E11: Дата договора | H11: 2013-04-25
E15: Расчетные параметры
E17: Сумма кредита | K17: 2000000 | M17: , руб.
E19: Стоимость предмета ипотеки | K19: 3000000 | M19: , руб.
E21: Дата выдачи кредита (займа) | K21: 2013-04-25
E23: Срок кредита на момент выдачи | K23: 24 | M23: , месяцев
E25: Регион | K25: Алтайский край
E27: Наличие личного страхования
E29: Новое жилье - новостройка
E31: Оформление послед. ипотеки
E33: Стандарт выдачи | K33: Стандарт 1-31 (коп)
E35: Ставка по кредиту | K35: 0.14
E37: К/З на момент выдачи | K37: 0.67
E41: Расчетное значение ТЗ/З | K41: 0.8469

Sheet Настройка калькулятора (hidden)
C3: Константы
C4: 300000 | D4: Минимальный размер кредита | H4: Процентные ставки
C5: 1 | D5: Максимальное значение ТЗ/З | H5: К/З Срок | I5: До 50% (включительно) | J5: От 51 до 70% (включительно)
C6: 0.8 | D6: Значение ТЗ/З при котором необходимо ипотечное страхование
C7: 0.3 | D7: Минимальное значение К/З | H7: До 12 мес.(включительно) | I7: 0.12 | J7: 0.125
C8: 0.7 | D8: Максимальное значение К/З | H8: От 13 до 24 мес. | I8: 0.13 | J8: 0.14
C9: 6 | D9: Минимальный срок кредита на момент выдачи (мес.)
C10: 1.5 | D10: Коэффициент превышения суммы кредита, установленной для региона
C11: 24 | D11: Максимальный срок кредита на момент выдачи (мес.)
C15: Доп. Надбавки
C16: Надбавка | D16: Причина надбавки
C17: 0.007 | D17: Надбавка за отсутствие личного страхования
C18: 0.01 | D18: Наличие обременения
C22: Типы продуктов
C23: Переезд-эконом
C24: Переезд-комфорт
C25: Переезд-межгород

Sheet Расчет графика платежей
B1: ФИО заемщика | F1: =FIO -> Петров П.П.
B2: Тип продукта | F2: =ProductType -> Переезд-комфорт
B3: Договор № | F3: =AgreementNo -> 21/514-65/754св
B4: Дата договора | F4: =AgreementDate -> 2013-04-25
B5: Сумма кредита (займа) | F5: =CredSumm -> 2000000
B6: Стандарт выдачи | F6: =GiveStandart -> Стандарт 1-31 (коп)
B7: Дата выдачи кредита | F7: =GiveDate -> 2013-04-25
B8: Процентная ставка по кредиту | F8: =CONCATENATE(InterestPercent*100,"% годовых") -> 14% годовых
B9: Срок кредита (займа) | F9: =CONCATENATE(Credit_Period," мес.") -> 24 мес.
B11: № пп | C11: Последняя дата процентного периода | D11: Фактическая дата платежа | E11: Сумма фактического платежа, руб. | F11: Задолженность на начало процентного периода | H11: Кол-во дней начисления % | I11: Ставка, % | J11: Проценты начисленные на остаток долга | K11: Задолженность на конец процентного периода | N11: Платеж в счет погашения задолженности по процентам, руб. | O11: Платеж в счет погашения ОД, руб. | Q11: Возврат
F12: Остаток основного долга по кредиту (займу) | G12: Задолженность по неоплаченным процентам, руб | K12: Остаток основного долга по кредиту (займу) | L12: Задолженность по неоплаченным процентам, руб
B13: [1] | C13: [2] | D13: [3] | E13: [4] | F13: [5] | G13: [6] | H13: [7] | I13: [8] | J13: [9] | K13: [10] | L13: [11] | N13: [12] | O13: [13] | Q13: [14]
A14: 1 | B14: 1 | C14: 2013-04-30 | F14: 2000000 | G14: 0 | H14: =IF(E14>=F5+ROUND((DAY(IF(D14="",C14,D14))-DAY(F7))*F5*I14/(DATE(YEAR(C14)+1,1,1)-DATE(YEAR(C14),1,1)),2),DAY(IF(D14="",C14,D14))-DAY(F7),DAY(C14)-DAY(F7)) -> 5 | I14: 0.14 | J14: =IF(E14>=F5+ROUND((DAY(IF(D14="",C14,D14))-DAY(F7))*F5*I14/(DATE(YEAR(C14)+1,1,1)-DATE(YEAR(C14),1,1)),2),ROUND((DAY(IF(D14="",C14,D14))-DAY(F7))*F5*I14/(DATE(YEAR(C14)+1,1,1)-DATE(YEAR(C14),1,1)),2),ROUND((F5)*(DAY(C14)-DAY(F7))*I14/(DATE(YEAR(C14)+1,1,1)-DATE(YEAR(C14),1,1)),2)) -> 3835.62 | K14: =(F5-O14) -> 2000000 | L14: =J14-N14 -> 3835.62 | N14: =IF(E14>=J14,J14,E14) -> 0 | O14: =IF(IF(E14>=N14,E14-N14,0)>F5,F5,IF(E14>N14,E14-N14,0)) -> 0 | Q14: =IF(E14>=J14+F5,E14-(J14+F5),0) -> 0
A15: 2 | B15: 2 | C15: =IF(B15<=GiveDate,DATE(YEAR(C14),MONTH(C14)+2,1)-1,"") -> 2013-05-31 | F15: =K14 -> 2000000 | G15: =L14 -> 3835.62 | H15: =IF(F15=0,0,IF(E15>=K14+L14+ROUND(DAY(IF(D15="",C15,D15))*K14*I15/(DATE(YEAR(C15)+1,1,1)-DATE(YEAR(C15),1,1)),2),DAY(IF(D15="",C15,D15)),DAY(C15))) -> 31 | I15: =IF(F15=0,0,I14) -> 0.14 | J15: =IF(E15>=K14+L14+ROUND(DAY(IF(D15="",C15,D15))*K14*I15/(DATE(YEAR(C15)+1,1,1)-DATE(YEAR(C15),1,1)),2),ROUND(DAY(IF(D15="",C15,D15))*K14*I15/(DATE(YEAR(C15)+1,1,1)-DATE(YEAR(C15),1,1)),2),ROUND((K14)*DAY(C15)*I15/(DATE(YEAR(C15)+1,1,1)-DATE(YEAR(C15),1,1)),2)) -> 23780.82 | K15: =(K14-O15) -> 2000000 | L15: =L14+J15-N15 -> 27616.44 | N15: =IF(E15>=L14+J15,L14+J15,E15) -> 0 | O15: =IF(IF(E15>=N15,E15-N15,0)>K14,K14,IF(E15>N15,E15-N15,0)) -> 0 | Q15: =IF(E15>=J15+K14+L14,E15-(J15+K14+L14),0) -> 0
A16: 3 | B16: 3 | C16: =IF(B16<=GiveDate,DATE(YEAR(C15),MONTH(C15)+2,1)-1,"") -> 2013-06-30 | F16: =K15 -> 2000000 | G16: =L15 -> 27616.44 | H16: =IF(F16=0,0,IF(E16>=K15+L15+ROUND(DAY(IF(D16="",C16,D16))*K15*I16/(DATE(YEAR(C16)+1,1,1)-DATE(YEAR(C16),1,1)),2),DAY(IF(D16="",C16,D16)),DAY(C16))) -> 30 | I16: =IF(F16=0,0,I15) -> 0.14 | J16: =IF(E16>=K15+L15+ROUND(DAY(IF(D16="",C16,D16))*K15*I16/(DATE(YEAR(C16)+1,1,1)-DATE(YEAR(C16),1,1)),2),ROUND(DAY(IF(D16="",C16,D16))*K15*I16/(DATE(YEAR(C16)+1,1,1)-DATE(YEAR(C16),1,1)),2),ROUND((K15)*DAY(C16)*I16/(DATE(YEAR(C16)+1,1,1)-DATE(YEAR(C16),1,1)),2)) -> 23013.7 | K16: =(K15-O16) -> 2000000 | L16: =L15+J16-N16 -> 50630.14 | N16: =IF(E16>=L15+J16,L15+J16,E16) -> 0 | O16: =IF(IF(E16>=N16,E16-N16,0)>K15,K15,IF(E16>N16,E16-N16,0)) -> 0 | Q16: =IF(E16>=J16+K15+L15,E16-(J16+K15+L15),0) -> 0
A17: 4 | B17: 4 | C17: =IF(B17<=GiveDate,DATE(YEAR(C16),MONTH(C16)+2,1)-1,"") -> 2013-07-31 | F17: =K16 -> 2000000 | G17: =L16 -> 50630.14 | H17: =IF(F17=0,0,IF(E17>=K16+L16+ROUND(DAY(IF(D17="",C17,D17))*K16*I17/(DATE(YEAR(C17)+1,1,1)-DATE(YEAR(C17),1,1)),2),DAY(IF(D17="",C17,D17)),DAY(C17))) -> 31 | I17: =IF(F17=0,0,I16) -> 0.14 | J17: =IF(E17>=K16+L16+ROUND(DAY(IF(D17="",C17,D17))*K16*I17/(DATE(YEAR(C17)+1,1,1)-DATE(YEAR(C17),1,1)),2),ROUND(DAY(IF(D17="",C17,D17))*K16*I17/(DATE(YEAR(C17)+1,1,1)-DATE(YEAR(C17),1,1)),2),ROUND((K16)*DAY(C17)*I17/(DATE(YEAR(C17)+1,1,1)-DATE(YEAR(C17),1,1)),2)) -> 23780.82 | K17: =(K16-O17) -> 2000000 | L17: =L16+J17-N17 -> 74410.96 | N17: =IF(E17>=L16+J17,L16+J17,E17) -> 0 | O17: =IF(IF(E17>=N17,E17-N17,0)>K16,K16,IF(E17>N17,E17-N17,0)) -> 0 | Q17: =IF(E17>=J17+K16+L16,E17-(J17+K16+L16),0) -> 0
A18: 5 | B18: 5 | C18: =IF(B18<=GiveDate,DATE(YEAR(C17),MONTH(C17)+2,1)-1,"") -> 2013-08-31 | F18: =K17 -> 2000000 | G18: =L17 -> 74410.96 | H18: =IF(F18=0,0,IF(E18>=K17+L17+ROUND(DAY(IF(D18="",C18,D18))*K17*I18/(DATE(YEAR(C18)+1,1,1)-DATE(YEAR(C18),1,1)),2),DAY(IF(D18="",C18,D18)),DAY(C18))) -> 31 | I18: =IF(F18=0,0,I17) -> 0.14 | J18: =IF(E18>=K17+L17+ROUND(DAY(IF(D18="",C18,D18))*K17*I18/(DATE(YEAR(C18)+1,1,1)-DATE(YEAR(C18),1,1)),2),ROUND(DAY(IF(D18="",C18,D18))*K17*I18/(DATE(YEAR(C18)+1,1,1)-DATE(YEAR(C18),1,1)),2),ROUND((K17)*DAY(C18)*I18/(DATE(YEAR(C18)+1,1,1)-DATE(YEAR(C18),1,1)),2)) -> 23780.82 | K18: =(K17-O18) -> 2000000 | L18: =L17+J18-N18 -> 98191.78 | N18: =IF(E18>=L17+J18,L17+J18,E18) -> 0 | O18: =IF(IF(E18>=N18,E18-N18,0)>K17,K17,IF(E18>N18,E18-N18,0)) -> 0 | Q18: =IF(E18>=J18+K17+L17,E18-(J18+K17+L17),0) -> 0
A19: 6 | B19: 6 | C19: =IF(B19<=GiveDate,DATE(YEAR(C18),MONTH(C18)+2,1)-1,"") -> 2013-09-30 | F19: =K18 -> 2000000 | G19: =L18 -> 98191.78 | H19: =IF(F19=0,0,IF(E19>=K18+L18+ROUND(DAY(IF(D19="",C19,D19))*K18*I19/(DATE(YEAR(C19)+1,1,1)-DATE(YEAR(C19),1,1)),2),DAY(IF(D19="",C19,D19)),DAY(C19))) -> 30 | I19: =IF(F19=0,0,I18) -> 0.14 | J19: =IF(E19>=K18+L18+ROUND(DAY(IF(D19="",C19,D19))*K18*I19/(DATE(YEAR(C19)+1,1,1)-DATE(YEAR(C19),1,1)),2),ROUND(DAY(IF(D19="",C19,D19))*K18*I19/(DATE(YEAR(C19)+1,1,1)-DATE(YEAR(C19),1,1)),2),ROUND((K18)*DAY(C19)*I19/(DATE(YEAR(C19)+1,1,1)-DATE(YEAR(C19),1,1)),2)) -> 23013.7 | K19: =(K18-O19) -> 2000000 | L19: =L18+J19-N19 -> 121205.48 | N19: =IF(E19>=L18+J19,L18+J19,E19) -> 0 | O19: =IF(IF(E19>=N19,E19-N19,0)>K18,K18,IF(E19>N19,E19-N19,0)) -> 0 | Q19: =IF(E19>=J19+K18+L18,E19-(J19+K18+L18),0) -> 0
A20: 7 | B20: 7 | C20: =IF(B20<=GiveDate,DATE(YEAR(C19),MONTH(C19)+2,1)-1,"") -> 2013-10-31 | F20: =K19 -> 2000000 | G20: =L19 -> 121205.48 | H20: =IF(F20=0,0,IF(E20>=K19+L19+ROUND(DAY(IF(D20="",C20,D20))*K19*I20/(DATE(YEAR(C20)+1,1,1)-DATE(YEAR(C20),1,1)),2),DAY(IF(D20="",C20,D20)),DAY(C20))) -> 31 | I20: =IF(F20=0,0,I19) -> 0.14 | J20: =IF(E20>=K19+L19+ROUND(DAY(IF(D20="",C20,D20))*K19*I20/(DATE(YEAR(C20)+1,1,1)-DATE(YEAR(C20),1,1)),2),ROUND(DAY(IF(D20="",C20,D20))*K19*I20/(DATE(YEAR(C20)+1,1,1)-DATE(YEAR(C20),1,1)),2),ROUND((K19)*DAY(C20)*I20/(DATE(YEAR(C20)+1,1,1)-DATE(YEAR(C20),1,1)),2)) -> 23780.82 | K20: =(K19-O20) -> 2000000 | L20: =L19+J20-N20 -> 144986.3 | N20: =IF(E20>=L19+J20,L19+J20,E20) -> 0 | O20: =IF(IF(E20>=N20,E20-N20,0)>K19,K19,IF(E20>N20,E20-N20,0)) -> 0 | Q20: =IF(E20>=J20+K19+L19,E20-(J20+K19+L19),0) -> 0
A21: 8 | B21: 8 | C21: =IF(B21<=GiveDate,DATE(YEAR(C20),MONTH(C20)+2,1)-1,"") -> 2013-11-30 | F21: =K20 -> 2000000 | G21: =L20 -> 144986.3 | H21: =IF(F21=0,0,IF(E21>=K20+L20+ROUND(DAY(IF(D21="",C21,D21))*K20*I21/(DATE(YEAR(C21)+1,1,1)-DATE(YEAR(C21),1,1)),2),DAY(IF(D21="",C21,D21)),DAY(C21))) -> 30 | I21: =IF(F21=0,0,I20) -> 0.14 | J21: =IF(E21>=K20+L20+ROUND(DAY(IF(D21="",C21,D21))*K20*I21/(DATE(YEAR(C21)+1,1,1)-DATE(YEAR(C21),1,1)),2),ROUND(DAY(IF(D21="",C21,D21))*K20*I21/(DATE(YEAR(C21)+1,1,1)-DATE(YEAR(C21),1,1)),2),ROUND((K20)*DAY(C21)*I21/(DATE(YEAR(C21)+1,1,1)-DATE(YEAR(C21),1,1)),2)) -> 23013.7 | K21: =(K20-O21) -> 2000000 | L21: =L20+J21-N21 -> 168000 | N21: =IF(E21>=L20+J21,L20+J21,E21) -> 0 | O21: =IF(IF(E21>=N21,E21-N21,0)>K20,K20,IF(E21>N21,E21-N21,0)) -> 0 | Q21: =IF(E21>=J21+K20+L20,E21-(J21+K20+L20),0) -> 0
A22: 9 | B22: 9 | C22: =IF(B22<=GiveDate,DATE(YEAR(C21),MONTH(C21)+2,1)-1,"") -> 2013-12-31 | F22: =K21 -> 2000000 | G22: =L21 -> 168000 | H22: =IF(F22=0,0,IF(E22>=K21+L21+ROUND(DAY(IF(D22="",C22,D22))*K21*I22/(DATE(YEAR(C22)+1,1,1)-DATE(YEAR(C22),1,1)),2),DAY(IF(D22="",C22,D22)),DAY(C22))) -> 31 | I22: =IF(F22=0,0,I21) -> 0.14 | J22: =IF(E22>=K21+L21+ROUND(DAY(IF(D22="",C22,D22))*K21*I22/(DATE(YEAR(C22)+1,1,1)-DATE(YEAR(C22),1,1)),2),ROUND(DAY(IF(D22="",C22,D22))*K21*I22/(DATE(YEAR(C22)+1,1,1)-DATE(YEAR(C22),1,1)),2),ROUND((K21)*DAY(C22)*I22/(DATE(YEAR(C22)+1,1,1)-DATE(YEAR(C22),1,1)),2)) -> 23780.82 | K22: =(K21-O22) -> 2000000 | L22: =L21+J22-N22 -> 191780.82 | N22: =IF(E22>=L21+J22,L21+J22,E22) -> 0 | O22: =IF(IF(E22>=N22,E22-N22,0)>K21,K21,IF(E22>N22,E22-N22,0)) -> 0 | Q22: =IF(E22>=J22+K21+L21,E22-(J22+K21+L21),0) -> 0
A23: 10 | B23: 10 | C23: =IF(B23<=GiveDate,DATE(YEAR(C22),MONTH(C22)+2,1)-1,"") -> 2014-01-31 | F23: =K22 -> 2000000 | G23: =L22 -> 191780.82 | H23: =IF(F23=0,0,IF(E23>=K22+L22+ROUND(DAY(IF(D23="",C23,D23))*K22*I23/(DATE(YEAR(C23)+1,1,1)-DATE(YEAR(C23),1,1)),2),DAY(IF(D23="",C23,D23)),DAY(C23))) -> 31 | I23: =IF(F23=0,0,I22) -> 0.14 | J23: =IF(E23>=K22+L22+ROUND(DAY(IF(D23="",C23,D23))*K22*I23/(DATE(YEAR(C23)+1,1,1)-DATE(YEAR(C23),1,1)),2),ROUND(DAY(IF(D23="",C23,D23))*K22*I23/(DATE(YEAR(C23)+1,1,1)-DATE(YEAR(C23),1,1)),2),ROUND((K22)*DAY(C23)*I23/(DATE(YEAR(C23)+1,1,1)-DATE(YEAR(C23),1,1)),2)) -> 23780.82 | K23: =(K22-O23) -> 2000000 | L23: =L22+J23-N23 -> 215561.64 | N23: =IF(E23>=L22+J23,L22+J23,E23) -> 0 | O23: =IF(IF(E23>=N23,E23-N23,0)>K22,K22,IF(E23>N23,E23-N23,0)) -> 0 | Q23: =IF(E23>=J23+K22+L22,E23-(J23+K22+L22),0) -> 0
A24: 11 | B24: 11 | C24: =IF(B24<=GiveDate,DATE(YEAR(C23),MONTH(C23)+2,1)-1,"") -> 2014-02-28 | F24: =K23 -> 2000000 | G24: =L23 -> 215561.64 | H24: =IF(F24=0,0,IF(E24>=K23+L23+ROUND(DAY(IF(D24="",C24,D24))*K23*I24/(DATE(YEAR(C24)+1,1,1)-DATE(YEAR(C24),1,1)),2),DAY(IF(D24="",C24,D24)),DAY(C24))) -> 28 | I24: =IF(F24=0,0,I23) -> 0.14 | J24: =IF(E24>=K23+L23+ROUND(DAY(IF(D24="",C24,D24))*K23*I24/(DATE(YEAR(C24)+1,1,1)-DATE(YEAR(C24),1,1)),2),ROUND(DAY(IF(D24="",C24,D24))*K23*I24/(DATE(YEAR(C24)+1,1,1)-DATE(YEAR(C24),1,1)),2),ROUND((K23)*DAY(C24)*I24/(DATE(YEAR(C24)+1,1,1)-DATE(YEAR(C24),1,1)),2)) -> 21479.45 | K24: =(K23-O24) -> 2000000 | L24: =L23+J24-N24 -> 237041.09 | N24: =IF(E24>=L23+J24,L23+J24,E24) -> 0 | O24: =IF(IF(E24>=N24,E24-N24,0)>K23,K23,IF(E24>N24,E24-N24,0)) -> 0 | Q24: =IF(E24>=J24+K23+L23,E24-(J24+K23+L23),0) -> 0
A25: 12 | B25: 12 | C25: =IF(B25<=GiveDate,DATE(YEAR(C24),MONTH(C24)+2,1)-1,"") -> 2014-03-31 | F25: =K24 -> 2000000 | G25: =L24 -> 237041.09 | H25: =IF(F25=0,0,IF(E25>=K24+L24+ROUND(DAY(IF(D25="",C25,D25))*K24*I25/(DATE(YEAR(C25)+1,1,1)-DATE(YEAR(C25),1,1)),2),DAY(IF(D25="",C25,D25)),DAY(C25))) -> 31 | I25: =IF(F25=0,0,I24) -> 0.14 | J25: =IF(E25>=K24+L24+ROUND(DAY(IF(D25="",C25,D25))*K24*I25/(DATE(YEAR(C25)+1,1,1)-DATE(YEAR(C25),1,1)),2),ROUND(DAY(IF(D25="",C25,D25))*K24*I25/(DATE(YEAR(C25)+1,1,1)-DATE(YEAR(C25),1,1)),2),ROUND((K24)*DAY(C25)*I25/(DATE(YEAR(C25)+1,1,1)-DATE(YEAR(C25),1,1)),2)) -> 23780.82 | K25: =(K24-O25) -> 2000000 | L25: =L24+J25-N25 -> 260821.91 | N25: =IF(E25>=L24+J25,L24+J25,E25) -> 0 | O25: =IF(IF(E25>=N25,E25-N25,0)>K24,K24,IF(E25>N25,E25-N25,0)) -> 0 | Q25: =IF(E25>=J25+K24+L24,E25-(J25+K24+L24),0) -> 0
B26: 13 | C26: =IF(B26<=GiveDate,DATE(YEAR(C25),MONTH(C25)+2,1)-1,"") -> 2014-04-30 | F26: =K25 -> 2000000 | G26: =L25 -> 260821.91 | H26: =IF(F26=0,0,IF(E26>=K25+L25+ROUND(DAY(IF(D26="",C26,D26))*K25*I26/(DATE(YEAR(C26)+1,1,1)-DATE(YEAR(C26),1,1)),2),DAY(IF(D26="",C26,D26)),DAY(C26))) -> 30 | I26: =IF(F26=0,0,I25) -> 0.14 | J26: =IF(E26>=K25+L25+ROUND(DAY(IF(D26="",C26,D26))*K25*I26/(DATE(YEAR(C26)+1,1,1)-DATE(YEAR(C26),1,1)),2),ROUND(DAY(IF(D26="",C26,D26))*K25*I26/(DATE(YEAR(C26)+1,1,1)-DATE(YEAR(C26),1,1)),2),ROUND((K25)*DAY(C26)*I26/(DATE(YEAR(C26)+1,1,1)-DATE(YEAR(C26),1,1)),2)) -> 23013.7 | K26: =(K25-O26) -> 2000000 | L26: =L25+J26-N26 -> 283835.61 | N26: =IF(E26>=L25+J26,L25+J26,E26) -> 0 | O26: =IF(IF(E26>=N26,E26-N26,0)>K25,K25,IF(E26>N26,E26-N26,0)) -> 0 | Q26: =IF(E26>=J26+K25+L25,E26-(J26+K25+L25),0) -> 0
B27: 14 | C27: =IF(B27<=GiveDate,DATE(YEAR(C26),MONTH(C26)+2,1)-1,"") -> 2014-05-31 | F27: =K26 -> 2000000 | G27: =L26 -> 283835.61 | H27: =IF(F27=0,0,IF(E27>=K26+L26+ROUND(DAY(IF(D27="",C27,D27))*K26*I27/(DATE(YEAR(C27)+1,1,1)-DATE(YEAR(C27),1,1)),2),DAY(IF(D27="",C27,D27)),DAY(C27))) -> 31 | I27: =IF(F27=0,0,I26) -> 0.14 | J27: =IF(E27>=K26+L26+ROUND(DAY(IF(D27="",C27,D27))*K26*I27/(DATE(YEAR(C27)+1,1,1)-DATE(YEAR(C27),1,1)),2),ROUND(DAY(IF(D27="",C27,D27))*K26*I27/(DATE(YEAR(C27)+1,1,1)-DATE(YEAR(C27),1,1)),2),ROUND((K26)*DAY(C27)*I27/(DATE(YEAR(C27)+1,1,1)-DATE(YEAR(C27),1,1)),2)) -> 23780.82 | K27: =(K26-O27) -> 2000000 | L27: =L26+J27-N27 -> 307616.43 | N27: =IF(E27>=L26+J27,L26+J27,E27) -> 0 | O27: =IF(IF(E27>=N27,E27-N27,0)>K26,K26,IF(E27>N27,E27-N27,0)) -> 0 | Q27: =IF(E27>=J27+K26+L26,E27-(J27+K26+L26),0) -> 0
B28: 15 | C28: =IF(B28<=GiveDate,DATE(YEAR(C27),MONTH(C27)+2,1)-1,"") -> 2014-06-30 | F28: =K27 -> 2000000 | G28: =L27 -> 307616.43 | H28: =IF(F28=0,0,IF(E28>=K27+L27+ROUND(DAY(IF(D28="",C28,D28))*K27*I28/(DATE(YEAR(C28)+1,1,1)-DATE(YEAR(C28),1,1)),2),DAY(IF(D28="",C28,D28)),DAY(C28))) -> 30 | I28: =IF(F28=0,0,I27) -> 0.14 | J28: =IF(E28>=K27+L27+ROUND(DAY(IF(D28="",C28,D28))*K27*I28/(DATE(YEAR(C28)+1,1,1)-DATE(YEAR(C28),1,1)),2),ROUND(DAY(IF(D28="",C28,D28))*K27*I28/(DATE(YEAR(C28)+1,1,1)-DATE(YEAR(C28),1,1)),2),ROUND((K27)*DAY(C28)*I28/(DATE(YEAR(C28)+1,1,1)-DATE(YEAR(C28),1,1)),2)) -> 23013.7 | K28: =(K27-O28) -> 2000000 | L28: =L27+J28-N28 -> 330630.13 | N28: =IF(E28>=L27+J28,L27+J28,E28) -> 0 | O28: =IF(IF(E28>=N28,E28-N28,0)>K27,K27,IF(E28>N28,E28-N28,0)) -> 0 | Q28: =IF(E28>=J28+K27+L27,E28-(J28+K27+L27),0) -> 0
B29: 16 | C29: =IF(B29<=GiveDate,DATE(YEAR(C28),MONTH(C28)+2,1)-1,"") -> 2014-07-31 | F29: =K28 -> 2000000 | G29: =L28 -> 330630.13 | H29: =IF(F29=0,0,IF(E29>=K28+L28+ROUND(DAY(IF(D29="",C29,D29))*K28*I29/(DATE(YEAR(C29)+1,1,1)-DATE(YEAR(C29),1,1)),2),DAY(IF(D29="",C29,D29)),DAY(C29))) -> 31 | I29: =IF(F29=0,0,I28) -> 0.14 | J29: =IF(E29>=K28+L28+ROUND(DAY(IF(D29="",C29,D29))*K28*I29/(DATE(YEAR(C29)+1,1,1)-DATE(YEAR(C29),1,1)),2),ROUND(DAY(IF(D29="",C29,D29))*K28*I29/(DATE(YEAR(C29)+1,1,1)-DATE(YEAR(C29),1,1)),2),ROUND((K28)*DAY(C29)*I29/(DATE(YEAR(C29)+1,1,1)-DATE(YEAR(C29),1,1)),2)) -> 23780.82 | K29: =(K28-O29) -> 2000000 | L29: =L28+J29-N29 -> 354410.95 | N29: =IF(E29>=L28+J29,L28+J29,E29) -> 0 | O29: =IF(IF(E29>=N29,E29-N29,0)>K28,K28,IF(E29>N29,E29-N29,0)) -> 0 | Q29: =IF(E29>=J29+K28+L28,E29-(J29+K28+L28),0) -> 0
B30: 17 | C30: =IF(B30<=GiveDate,DATE(YEAR(C29),MONTH(C29)+2,1)-1,"") -> 2014-08-31 | F30: =K29 -> 2000000 | G30: =L29 -> 354410.95 | H30: =IF(F30=0,0,IF(E30>=K29+L29+ROUND(DAY(IF(D30="",C30,D30))*K29*I30/(DATE(YEAR(C30)+1,1,1)-DATE(YEAR(C30),1,1)),2),DAY(IF(D30="",C30,D30)),DAY(C30))) -> 31 | I30: =IF(F30=0,0,I29) -> 0.14 | J30: =IF(E30>=K29+L29+ROUND(DAY(IF(D30="",C30,D30))*K29*I30/(DATE(YEAR(C30)+1,1,1)-DATE(YEAR(C30),1,1)),2),ROUND(DAY(IF(D30="",C30,D30))*K29*I30/(DATE(YEAR(C30)+1,1,1)-DATE(YEAR(C30),1,1)),2),ROUND((K29)*DAY(C30)*I30/(DATE(YEAR(C30)+1,1,1)-DATE(YEAR(C30),1,1)),2)) -> 23780.82 | K30: =(K29-O30) -> 2000000 | L30: =L29+J30-N30 -> 378191.77 | N30: =IF(E30>=L29+J30,L29+J30,E30) -> 0 | O30: =IF(IF(E30>=N30,E30-N30,0)>K29,K29,IF(E30>N30,E30-N30,0)) -> 0 | Q30: =IF(E30>=J30+K29+L29,E30-(J30+K29+L29),0) -> 0
B31: 18 | C31: =IF(B31<=GiveDate,DATE(YEAR(C30),MONTH(C30)+2,1)-1,"") -> 2014-09-30 | F31: =K30 -> 2000000 | G31: =L30 -> 378191.77 | H31: =IF(F31=0,0,IF(E31>=K30+L30+ROUND(DAY(IF(D31="",C31,D31))*K30*I31/(DATE(YEAR(C31)+1,1,1)-DATE(YEAR(C31),1,1)),2),DAY(IF(D31="",C31,D31)),DAY(C31))) -> 30 | I31: =IF(F31=0,0,I30) -> 0.14 | J31: =IF(E31>=K30+L30+ROUND(DAY(IF(D31="",C31,D31))*K30*I31/(DATE(YEAR(C31)+1,1,1)-DATE(YEAR(C31),1,1)),2),ROUND(DAY(IF(D31="",C31,D31))*K30*I31/(DATE(YEAR(C31)+1,1,1)-DATE(YEAR(C31),1,1)),2),ROUND((K30)*DAY(C31)*I31/(DATE(YEAR(C31)+1,1,1)-DATE(YEAR(C31),1,1)),2)) -> 23013.7 | K31: =(K30-O31) -> 2000000 | L31: =L30+J31-N31 -> 401205.47 | N31: =IF(E31>=L30+J31,L30+J31,E31) -> 0 | O31: =IF(IF(E31>=N31,E31-N31,0)>K30,K30,IF(E31>N31,E31-N31,0)) -> 0 | Q31: =IF(E31>=J31+K30+L30,E31-(J31+K30+L30),0) -> 0
B32: 19 | C32: =IF(B32<=GiveDate,DATE(YEAR(C31),MONTH(C31)+2,1)-1,"") -> 2014-10-31 | F32: =K31 -> 2000000 | G32: =L31 -> 401205.47 | H32: =IF(F32=0,0,IF(E32>=K31+L31+ROUND(DAY(IF(D32="",C32,D32))*K31*I32/(DATE(YEAR(C32)+1,1,1)-DATE(YEAR(C32),1,1)),2),DAY(IF(D32="",C32,D32)),DAY(C32))) -> 31 | I32: =IF(F32=0,0,I31) -> 0.14 | J32: =IF(E32>=K31+L31+ROUND(DAY(IF(D32="",C32,D32))*K31*I32/(DATE(YEAR(C32)+1,1,1)-DATE(YEAR(C32),1,1)),2),ROUND(DAY(IF(D32="",C32,D32))*K31*I32/(DATE(YEAR(C32)+1,1,1)-DATE(YEAR(C32),1,1)),2),ROUND((K31)*DAY(C32)*I32/(DATE(YEAR(C32)+1,1,1)-DATE(YEAR(C32),1,1)),2)) -> 23780.82 | K32: =(K31-O32) -> 2000000 | L32: =L31+J32-N32 -> 424986.29 | N32: =IF(E32>=L31+J32,L31+J32,E32) -> 0 | O32: =IF(IF(E32>=N32,E32-N32,0)>K31,K31,IF(E32>N32,E32-N32,0)) -> 0 | Q32: =IF(E32>=J32+K31+L31,E32-(J32+K31+L31),0) -> 0
B33: 20 | C33: =IF(B33<=GiveDate,DATE(YEAR(C32),MONTH(C32)+2,1)-1,"") -> 2014-11-30 | F33: =K32 -> 2000000 | G33: =L32 -> 424986.29 | H33: =IF(F33=0,0,IF(E33>=K32+L32+ROUND(DAY(IF(D33="",C33,D33))*K32*I33/(DATE(YEAR(C33)+1,1,1)-DATE(YEAR(C33),1,1)),2),DAY(IF(D33="",C33,D33)),DAY(C33))) -> 30 | I33: =IF(F33=0,0,I32) -> 0.14 | J33: =IF(E33>=K32+L32+ROUND(DAY(IF(D33="",C33,D33))*K32*I33/(DATE(YEAR(C33)+1,1,1)-DATE(YEAR(C33),1,1)),2),ROUND(DAY(IF(D33="",C33,D33))*K32*I33/(DATE(YEAR(C33)+1,1,1)-DATE(YEAR(C33),1,1)),2),ROUND((K32)*DAY(C33)*I33/(DATE(YEAR(C33)+1,1,1)-DATE(YEAR(C33),1,1)),2)) -> 23013.7 | K33: =(K32-O33) -> 2000000 | L33: =L32+J33-N33 -> 447999.99 | N33: =IF(E33>=L32+J33,L32+J33,E33) -> 0 | O33: =IF(IF(E33>=N33,E33-N33,0)>K32,K32,IF(E33>N33,E33-N33,0)) -> 0 | Q33: =IF(E33>=J33+K32+L32,E33-(J33+K32+L32),0) -> 0
B34: 21 | C34: =IF(B34<=GiveDate,DATE(YEAR(C33),MONTH(C33)+2,1)-1,"") -> 2014-12-31 | F34: =K33 -> 2000000 | G34: =L33 -> 447999.99 | H34: =IF(F34=0,0,IF(E34>=K33+L33+ROUND(DAY(IF(D34="",C34,D34))*K33*I34/(DATE(YEAR(C34)+1,1,1)-DATE(YEAR(C34),1,1)),2),DAY(IF(D34="",C34,D34)),DAY(C34))) -> 31 | I34: =IF(F34=0,0,I33) -> 0.14 | J34: =IF(E34>=K33+L33+ROUND(DAY(IF(D34="",C34,D34))*K33*I34/(DATE(YEAR(C34)+1,1,1)-DATE(YEAR(C34),1,1)),2),ROUND(DAY(IF(D34="",C34,D34))*K33*I34/(DATE(YEAR(C34)+1,1,1)-DATE(YEAR(C34),1,1)),2),ROUND((K33)*DAY(C34)*I34/(DATE(YEAR(C34)+1,1,1)-DATE(YEAR(C34),1,1)),2)) -> 23780.82 | K34: =(K33-O34) -> 2000000 | L34: =L33+J34-N34 -> 471780.81 | N34: =IF(E34>=L33+J34,L33+J34,E34) -> 0 | O34: =IF(IF(E34>=N34,E34-N34,0)>K33,K33,IF(E34>N34,E34-N34,0)) -> 0 | Q34: =IF(E34>=J34+K33+L33,E34-(J34+K33+L33),0) -> 0
B35: 22 | C35: =IF(B35<=GiveDate,DATE(YEAR(C34),MONTH(C34)+2,1)-1,"") -> 2015-01-31 | F35: =K34 -> 2000000 | G35: =L34 -> 471780.81 | H35: =IF(F35=0,0,IF(E35>=K34+L34+ROUND(DAY(IF(D35="",C35,D35))*K34*I35/(DATE(YEAR(C35)+1,1,1)-DATE(YEAR(C35),1,1)),2),DAY(IF(D35="",C35,D35)),DAY(C35))) -> 31 | I35: =IF(F35=0,0,I34) -> 0.14 | J35: =IF(E35>=K34+L34+ROUND(DAY(IF(D35="",C35,D35))*K34*I35/(DATE(YEAR(C35)+1,1,1)-DATE(YEAR(C35),1,1)),2),ROUND(DAY(IF(D35="",C35,D35))*K34*I35/(DATE(YEAR(C35)+1,1,1)-DATE(YEAR(C35),1,1)),2),ROUND((K34)*DAY(C35)*I35/(DATE(YEAR(C35)+1,1,1)-DATE(YEAR(C35),1,1)),2)) -> 23780.82 | K35: =(K34-O35) -> 2000000 | L35: =L34+J35-N35 -> 495561.63 | N35: =IF(E35>=L34+J35,L34+J35,E35) -> 0 | O35: =IF(IF(E35>=N35,E35-N35,0)>K34,K34,IF(E35>N35,E35-N35,0)) -> 0 | Q35: =IF(E35>=J35+K34+L34,E35-(J35+K34+L34),0) -> 0
B36: 23 | C36: =IF(B36<=GiveDate,DATE(YEAR(C35),MONTH(C35)+2,1)-1,"") -> 2015-02-28 | F36: =K35 -> 2000000 | G36: =L35 -> 495561.63 | H36: =IF(F36=0,0,IF(E36>=K35+L35+ROUND(DAY(IF(D36="",C36,D36))*K35*I36/(DATE(YEAR(C36)+1,1,1)-DATE(YEAR(C36),1,1)),2),DAY(IF(D36="",C36,D36)),DAY(C36))) -> 28 | I36: =IF(F36=0,0,I35) -> 0.14 | J36: =IF(E36>=K35+L35+ROUND(DAY(IF(D36="",C36,D36))*K35*I36/(DATE(YEAR(C36)+1,1,1)-DATE(YEAR(C36),1,1)),2),ROUND(DAY(IF(D36="",C36,D36))*K35*I36/(DATE(YEAR(C36)+1,1,1)-DATE(YEAR(C36),1,1)),2),ROUND((K35)*DAY(C36)*I36/(DATE(YEAR(C36)+1,1,1)-DATE(YEAR(C36),1,1)),2)) -> 21479.45 | K36: =(K35-O36) -> 2000000 | L36: =L35+J36-N36 -> 517041.08 | N36: =IF(E36>=L35+J36,L35+J36,E36) -> 0 | O36: =IF(IF(E36>=N36,E36-N36,0)>K35,K35,IF(E36>N36,E36-N36,0)) -> 0 | Q36: =IF(E36>=J36+K35+L35,E36-(J36+K35+L35),0) -> 0
B37: 24 | C37: =IF(B37<=GiveDate,DATE(YEAR(C36),MONTH(C36)+2,1)-1,"") -> 2015-03-31 | F37: =K36 -> 2000000 | G37: =L36 -> 517041.08 | H37: =IF(F37=0,0,IF(E37>=K36+L36+ROUND(DAY(IF(D37="",C37,D37))*K36*I37/(DATE(YEAR(C37)+1,1,1)-DATE(YEAR(C37),1,1)),2),DAY(IF(D37="",C37,D37)),DAY(C37))) -> 31 | I37: =IF(F37=0,0,I36) -> 0.14 | J37: =IF(E37>=K36+L36+ROUND(DAY(IF(D37="",C37,D37))*K36*I37/(DATE(YEAR(C37)+1,1,1)-DATE(YEAR(C37),1,1)),2),ROUND(DAY(IF(D37="",C37,D37))*K36*I37/(DATE(YEAR(C37)+1,1,1)-DATE(YEAR(C37),1,1)),2),ROUND((K36)*DAY(C37)*I37/(DATE(YEAR(C37)+1,1,1)-DATE(YEAR(C37),1,1)),2)) -> 23780.82 | K37: =(K36-O37) -> 2000000 | L37: =L36+J37-N37 -> 540821.9 | N37: =IF(E37>=L36+J37,L36+J37,E37) -> 0 | O37: =IF(IF(E37>=N37,E37-N37,0)>K36,K36,IF(E37>N37,E37-N37,0)) -> 0 | Q37: =IF(E37>=J37+K36+L36,E37-(J37+K36+L36),0) -> 0

Sheet Регионы (hidden)
B1: к/з min, % | C1: к/з max, % (включительно) | D1: Алтайский край | E1: Амурская область | F1: Архангельская область | G1: Астраханская область | H1: Белгородская область | I1: Брянская область | J1: Владимирская область | K1: Волгоградская область | L1: Вологодская область | M1: Воронежская область | N1: г. Владивосток | O1: г. Сочи | P1: г.Москва | Q1: г.Санкт-Петербург | R1: Еврейская автономная область | S1: Забайкальский край | T1: Ивановская область | U1: Иркутская область | V1: Кабардино-Балкарская Республика | W1: Калининградская область | X1: Калужская область | Y1: Камчатский край | Z1: Карачаево-Черкесская Республика | AA1: Кемеровская область | AB1: Кировская область | AC1: Костромская область | AD1: Краснодарский край | AE1: Красноярский край | AF1: Курганская область | AG1: Курская область | AH1: Ленинградская область | AI1: Липецкая область | AJ1: Магаданская область | AK1: Московская область | AL1: Мурманская область | AM1: Нижегородская область | AN1: Новгородская область | AO1: Новосибирская область | AP1: Омская область | AQ1: Оренбургская область | AR1: Орловская область | AS1: Пензенская область | AT1: Пермский край | AU1: Приморский край (за исключением г. Владивосток) | AV1: Псковская область | AW1: Республика Адыгея | AX1: Республика Алтай | AY1: Республика Башкортостан | AZ1: Республика Бурятия | BA1: Республика Дагестан | BB1: Республика Ингушетия | BC1: Республика Калмыкия | BD1: Республика Карелия | BE1: Республика Коми | BF1: Республика Марий Эл | BG1: Республика Мордовия | BH1: Республика Саха (Якутия) | BI1: Республика Северная Осетия - Алания | BJ1: Республика Татарстан | BK1: Республика Тыва | BL1: Республика Хакасия | BM1: Ростовская область | BN1: Рязанская область | BO1: Самарская область | BP1: Саратовская область | BQ1: Сахалинская область | BR1: Свердловская область | BS1: Смоленская область | BT1: Ставропольский край | BU1: Тамбовская область | BV1: Тверская область | BW1: Томская область | BX1: Тульская область | BY1: Тюменская область | BZ1: Удмуртская Республика | CA1: Ульяновская область | CB1: Хабаровский край | CC1: Ханты-Мансийский автономный округ - Югра | CD1: Челябинская область | CE1: Чеченская Республика | CF1: Чувашская Республика | CG1: Чукотский автономный округ | CH1: Ямало-Ненецкий автономный округ | CI1: Ярославская область
B2: 30 | C2: 50 | D2: 2.7 | E2: 4.2 | F2: 3.2 | G2: 2.4 | H2: 3.2 | I2: 2.6 | J2: 3.1 | K2: 3 | L2: 2.7 | M2: 2.8 | N2: 5 | O2: 6.1 | P2: 10 | Q2: 5.7 | R2: 2.6 | S2: 2.8 | T2: 2.7 | U2: 3.5 | V2: 2.6 | W2: 3 | X2: 4.2 | Y2: 3.2 | Z2: 1.9 | AA2: 2.9 | AB2: 2.6 | AC2: 2.8 | AD2: 3 | AE2: 3.2 | AF2: 2.6 | AG2: 2.1 | AH2: 3.9 | AI2: 2.8 | AJ2: 2.6 | AK2: 7.1 | AL2: 2.6 | AM2: 3.2 | AN2: 2.9 | AO2: 3.1 | AP2: 2.6 | AQ2: 2.8 | AR2: 2.4 | AS2: 2.7 | AT2: 3.1 | AU2: 3.1 | AV2: 2.7 | AW2: 2.1 | AX2: 2.8 | AY2: 3.5 | AZ2: 2.7 | BA2: 2.7 | BB2: 1.7 | BC2: 2.1 | BD2: 3.1 | BE2: 3.9 | BF2: 2.7 | BG2: 2.7 | BH2: 4.1 | BI2: 1.9 | BJ2: 3.5 | BK2: 3.1 | BL2: 2.9 | BM2: 3.9 | BN2: 2.9 | BO2: 3 | BP2: 2.1 | BQ2: 4.2 | BR2: 4.1 | BS2: 3 | BT2: 2.6 | BU2: 2.4 | BV2: 3.1 | BW2: 3 | BX2: 2.9 | BY2: 3.1 | BZ2: 2.8 | CA2: 2.6 | CB2: 4.1 | CC2: 5 | CD2: 2.7 | CE2: 1.8 | CF2: 2.8 | CG2: 2.6 | CH2: 3.9 | CI2: 3.1
B3: 50 | C3: 60 | D3: 2.4 | E3: 3.8 | F3: 2.9 | G3: 2.1 | H3: 2.9 | I3: 2.3 | J3: 2.8 | K3: 2.7 | L3: 2.4 | M3: 2.5 | N3: 4.5 | O3: 5.5 | P3: 9 | Q3: 5.1 | R3: 2.3 | S3: 2.5 | T3: 2.4 | U3: 3.1 | V3: 2.3 | W3: 2.7 | X3: 3.8 | Y3: 2.9 | Z3: 1.7 | AA3: 2.6 | AB3: 2.3 | AC3: 2.5 | AD3: 2.7 | AE3: 2.9 | AF3: 2.3 | AG3: 1.9 | AH3: 3.5 | AI3: 2.5 | AJ3: 2.3 | AK3: 6.4 | AL3: 2.3 | AM3: 2.9 | AN3: 2.6 | AO3: 2.8 | AP3: 2.3 | AQ3: 2.5 | AR3: 2.1 | AS3: 2.4 | AT3: 2.8 | AU3: 2.8 | AV3: 2.4 | AW3: 1.9 | AX3: 2.5 | AY3: 3.1 | AZ3: 2.4 | BA3: 2.4 | BB3: 1.5 | BC3: 1.9 | BD3: 2.8 | BE3: 3.5 | BF3: 2.4 | BG3: 2.4 | BH3: 3.7 | BI3: 1.7 | BJ3: 3.1 | BK3: 2.8 | BL3: 2.6 | BM3: 3.5 | BN3: 2.6 | BO3: 2.7 | BP3: 1.9 | BQ3: 3.8 | BR3: 3.7 | BS3: 2.7 | BT3: 2.3 | BU3: 2.1 | BV3: 2.8 | BW3: 2.7 | BX3: 2.6 | BY3: 2.8 | BZ3: 2.5 | CA3: 2.3 | CB3: 3.7 | CC3: 4.5 | CD3: 2.4 | CE3: 1.6 | CF3: 2.5 | CG3: 2.3 | CH3: 3.5 | CI3: 2.8
B4: 60 | C4: 70 | D4: 2.1 | E4: 3.4 | F4: 2.6 | G4: 1.9 | H4: 2.6 | I4: 2 | J4: 2.5 | K4: 2.4 | L4: 2.1 | M4: 2.2 | N4: 4 | O4: 4.9 | P4: 8 | Q4: 4.6 | R4: 2 | S4: 2.2 | T4: 2.1 | U4: 2.8 | V4: 2 | W4: 2.4 | X4: 3.4 | Y4: 2.6 | Z4: 1.5 | AA4: 2.3 | AB4: 2 | AC4: 2.2 | AD4: 2.4 | AE4: 2.6 | AF4: 2 | AG4: 1.7 | AH4: 3.1 | AI4: 2.2 | AJ4: 2 | AK4: 5.8 | AL4: 2 | AM4: 2.6 | AN4: 2.3 | AO4: 2.5 | AP4: 2 | AQ4: 2.2 | AR4: 1.9 | AS4: 2.1 | AT4: 2.5 | AU4: 2.5 | AV4: 2.1 | AW4: 1.7 | AX4: 2.2 | AY4: 2.8 | AZ4: 2.1 | BA4: 2.1 | BB4: 1.3 | BC4: 1.7 | BD4: 2.5 | BE4: 3.1 | BF4: 2.1 | BG4: 2.1 | BH4: 3.3 | BI4: 1.5 | BJ4: 2.8 | BK4: 2.5 | BL4: 2.3 | BM4: 3.1 | BN4: 2.3 | BO4: 2.4 | BP4: 1.7 | BQ4: 3.4 | BR4: 3.3 | BS4: 2.4 | BT4: 2 | BU4: 1.9 | BV4: 2.5 | BW4: 2.4 | BX4: 2.3 | BY4: 2.5 | BZ4: 2.2 | CA4: 2 | CB4: 3.3 | CC4: 4 | CD4: 2.1 | CE4: 1.4 | CF4: 2.2 | CG4: 2 | CH4: 3.1 | CI4: 2.5
B9: к/з min, % | C9: к/з max, % (включительно) | D9: г.Москва | E9: Все регионы (за исключением г. Москвы)
B10: 30 | C10: 50 | D10: 10 | E10: 7.1
B11: 50 | C11: 60 | D11: 9 | E11: 6.4
B12: 60 | C12: 70 | D12: 8 | E12: 5.8
